fUST/lending_fUST_20260419
["ID","MTS","AMOUNT","RATE_DAILY","PERIOD"]
[420781551,1776528012373,500.0,0.00024657,120]
[420781554,1776528012591,500.0,0.00024657,120]
[420781556,1776528012851,500.0,0.00024657,120]
[420781558,1776528017913,500.0,0.00024657,120]
[420781559,1776528018135,378.52,0.00024657,120]
[420781560,1776528023839,500.0,0.00024657,120]
[420781561,1776528024058,500.0,0.00024657,120]
[420781562,1776528024278,500.0,0.00024657,120]
[420781563,1776528024503,500.0,0.00024657,120]
[420781564,1776528024721,375.25,0.00024657,120]
[420781565,1776528027098,500.0,0.00024657,120]
[420781652,1776528029577,500.0,0.00024657,120]
[420781660,1776528029817,500.0,0.00024657,120]
[420781661,1776528030061,500.0,0.00024657,120]
[420781662,1776528030238,500.0,0.00024657,120]
[420781663,1776528030328,601.38,0.00024657,120]
[420781664,1776528030452,500.0,0.00024657,120]
[420781665,1776528030927,500.0,0.00024657,120]
[420781666,1776528031083,581.16,0.00024657,120]
[420781667,1776528044104,500.0,0.00024657,120]
[420781668,1776528044327,500.0,0.00024657,120]
[420781669,1776528044556,500.0,0.00024657,120]
[420781670,1776528044801,591.42,0.00024657,120]
[420781672,1776528053877,500.0,0.00024657,120]
[420781673,1776528054115,500.0,0.00024657,120]
[420781674,1776528054349,500.0,0.00024657,120]
[420781675,1776528054577,500.0,0.00024657,120]
[420781676,1776528054836,248.11,0.00024657,120]
[420781923,1776528076538,500.0,0.00024657,120]
[420781924,1776528076780,500.0,0.00024657,120]
[420781925,1776528077014,531.86,0.00024657,120]
[420781926,1776528081486,500.0,0.00024657,120]
[420781927,1776528081626,-3816.82445402,9.457e-05,2]
[420781928,1776528081738,500.0,0.00024657,120]
[420781929,1776528081954,500.0,0.00024657,120]
[420781930,1776528082213,500.0,0.00024657,120]
[420781931,1776528082485,314.17,0.00024657,120]
[420781932,1776528095349,295.69,0.00024657,120]
[420781933,1776528097157,500.0,0.00024657,120]
[420781934,1776528097539,500.0,0.00024657,120]
[420781935,1776528097807,500.0,0.00024657,120]
[420781937,1776528099726,500.0,0.00024657,120]
[420781938,1776528099955,500.0,0.00024657,120]
[420781939,1776528100189,379.18675798,0.00024657,120]
[420781940,1776528100904,505.71909699,0.00024657,120]
[420781941,1776528106450,500.0,0.00024657,120]
[420781942,1776528106699,500.0,0.00024657,120]
[420781943,1776528106944,500.0,0.00024657,120]
[420781944,1776528107167,500.0,0.00024657,120]
[420781945,1776528107791,500.0,0.00024657,120]
[420781946,1776528107999,230.87,0.00024657,120]
[420781947,1776528115229,500.0,0.00024657,120]
[420781948,1776528115486,500.0,0.00024657,120]
[420781949,1776528115709,500.0,0.00024657,120]
[420781951,1776528122823,500.0,0.00024657,120]
[420781952,1776528123063,500.0,0.00024657,120]
[420781954,1776528124882,500.0,0.00024657,120]
[420781955,1776528125470,500.0,0.00024657,120]
[420781956,1776528125613,500.0,0.00024657,120]
[420781959,1776528136001,500.0,0.00024657,120]
[420781960,1776528136082,500.0,0.00024657,120]
[420781961,1776528136157,500.0,0.00024657,120]
[420781964,1776528144437,500.0,0.00024657,120]
[420781965,1776528144693,500.0,0.00024657,120]
[420781966,1776528144788,534.43,0.00024657,120]
[420781967,1776528147967,500.0,0.00023662,120]
[420781969,1776528149138,500.0,0.00024657,120]
[420781970,1776528149375,500.0,0.00024657,120]
[420781971,1776528149642,500.0,0.00024657,120]
[420781972,1776528151463,500.0,0.00024657,120]
[420781973,1776528151697,500.0,0.00024657,120]
[420781976,1776528164643,500.0,0.00024657,120]
[420781977,1776528164856,500.0,0.00024657,120]
[420781978,1776528165076,500.0,0.00024657,120]
[420781979,1776528168017,500.0,0.00024657,120]
[420781980,1776528168256,500.0,0.00024657,120]
[420781982,1776528170414,500.0,0.00024657,120]
[420781983,1776528170650,500.0,0.00024657,120]
[420781984,1776528184844,500.0,0.00024657,120]
[420781985,1776528185067,500.0,0.00024657,120]
[420781987,1776528189410,500.0,0.00024657,120]
[420781988,1776528189630,500.0,0.00024657,120]
[420781989,1776528189855,500.0,0.00024657,120]
[420781990,1776528190088,500.0,0.00024657,120]
[420781992,1776528190305,561.04,0.00024657,120]
[420781994,1776528198051,500.0,0.00024657,120]
[420781996,1776528198505,500.0,0.00024657,120]
[420781997,1776528198769,500.0,0.00024657,120]
[420781998,1776528208217,500.0,0.00024657,120]
[420781999,1776528208437,500.0,0.00024657,120]
[420782000,1776528208543,500.0,0.00024657,120]
[420782001,1776528208763,500.0,0.00024657,120]
[420782003,1776528209017,500.0,0.00024657,120]
[420782004,1776528209245,250.64,0.00024657,120]
[420782006,1776528211896,500.0,0.00024657,120]
[420782007,1776528212121,282.35057831,0.00024657,120]
[420782008,1776528215539,500.0,0.00024657,120]
[420782009,1776528215800,500.0,0.00024657,120]
[420782010,1776528220257,500.0,0.00024657,120]
[420782011,1776528220504,500.0,0.00024657,120]
[420782016,1776528233309,500.0,0.00024657,120]
[420782017,1776528233536,500.0,0.00024657,120]
[420782018,1776528233772,500.0,0.00024657,120]
[420782019,1776528235051,500.0,0.00024657,120]
[420782020,1776528235271,500.0,0.00024657,120]
[420782022,1776528255898,500.0,0.00024657,120]
[420782023,1776528256152,227.67,0.00024657,120]
[420782024,1776528258546,500.0,0.00024657,120]
[420782025,1776528258780,500.0,0.00024657,120]
[420782027,1776528262175,500.0,0.00024657,120]
[420782028,1776528268725,500.0,0.00024657,120]
[420782029,1776528268977,468.34,0.00024657,120]
[420782030,1776528323325,500.0,0.00024657,120]
[420782031,1776528323744,500.0,0.00024657,120]
[420782033,1776528331033,500.0,0.00024657,120]
[420782034,1776528331263,500.0,0.00024657,120]
[420782036,1776528364619,500.0,0.00024657,120]
[420782037,1776528364851,500.0,0.00024657,120]
[420782038,1776528365076,560.78,0.00024657,120]
[420782043,1776528390963,500.0,0.00024657,120]
[420782044,1776528391201,500.0,0.00024657,120]
[420782046,1776528419413,253.53183085,0.00024657,120]
[420782049,1776528442457,500.0,0.00024657,120]
[420782050,1776528442695,500.0,0.00024657,120]
[420782051,1776528442927,229.62,0.00024657,120]
[420782052,1776528444977,500.0,0.00023662,120]
[420782054,1776528450607,500.0,0.00024657,120]
[420782055,1776528450878,500.0,0.00024657,120]
[420782057,1776528458261,458.14977738,0.00024657,120]
[420782059,1776528467824,500.0,0.00024657,120]
[420782060,1776528468051,500.0,0.00024657,120]
[420782061,1776528468382,626.22,0.00024657,120]
[420782063,1776528478781,500.0,0.00024657,120]
[420782064,1776528479368,156.56,0.00024657,120]
[420782065,1776528488953,500.0,0.00024657,120]
[420782066,1776528489182,223.68,0.00024657,120]
[420782072,1776528517549,585.2,0.00024657,120]
[420782073,1776528525490,500.0,0.00024657,120]
[420782074,1776528525740,500.0,0.00024657,120]
[420782075,1776528525989,500.0,0.00024657,120]
[420782076,1776528526228,240.98,0.00024657,120]
[420782080,1776528629926,659.37,0.00024657,120]
[420782081,1776528630180,659.37,0.00024657,120]
[420782082,1776528630412,659.37,0.00024657,120]
[420782083,1776528630656,659.37,0.00024657,120]
[420782084,1776528630877,659.37,0.00024657,120]
[420782085,1776528631111,659.37,0.00024657,120]
[420782086,1776528631364,659.37,0.00024657,120]
[420782087,1776528631612,659.37,0.00024657,120]
[420782088,1776528631846,659.37,0.00024657,120]
[420782107,1776528632157,659.37,0.00024657,120]
[420782117,1776528632279,-1221.0,5.371e-05,2]
[420782120,1776528632291,-1353.47284425,5.371e-05,2]
[420782122,1776528632304,-566.01503087,5.371e-05,2]
[420782132,1776528632391,659.37,0.00024657,120]
[420782134,1776528632403,-253.08869634,5.371e-05,2]
[420782159,1776528632630,659.37,0.00024657,120]
[420782192,1776528632945,659.37,0.00024657,120]
[420782208,1776528633087,659.37,0.00024657,120]
[420782235,1776528633338,659.37,0.00024657,120]
[420782260,1776528633566,659.37,0.00024657,120]
[420782277,1776528633818,659.37,0.00024657,120]
[420782278,1776528634602,659.37,0.00024657,120]
[420782279,1776528634955,659.37,0.00024657,120]
[420782280,1776528635337,659.37,0.00024657,120]
[420782281,1776528635567,659.37,0.00024657,120]
[420782282,1776528635816,659.37,0.00024657,120]
[420782283,1776528636386,659.37,0.00024657,120]
[420782284,1776528636465,659.43068234,0.00024657,120]
[420782303,1776528638682,-1428.24,5.371e-05,2]
[420782304,1776528638790,-178.18342854,5.371e-05,2]
[420782305,1776528638800,-997.0,5.479e-05,2]
[420782306,1776528638809,-232.20907907,7.432e-05,2]
[420782307,1776528638819,-274.0067133,9.432e-05,2]
[420782308,1776528638828,-150.0,9.5e-05,30]
[420782309,1776528638837,-262.0,9.838e-05,2]
[420782310,1776528638846,-61.10941221,9.839e-05,2]
[420782311,1776528638860,-1346.89058779,9.839e-05,2]
[420782312,1776528638871,-645.0,9.839e-05,2]
[420782313,1776528638880,-4259.76,9.863e-05,2]
[420782314,1776528638891,-2968.89719118,9.863e-05,2]
[420782315,1776528638904,-1290.86280882,9.863e-05,2]
[420782316,1776528638913,-184.0,9.963e-05,2]
[420782317,1776528638923,-441.0,9.963e-05,2]
[420782318,1776528638933,-205.49,0.00010692,2]
[420782319,1776528638942,-1000.0,0.00010959,2]
[420782320,1776528638953,-500.0,0.00010959,2]
[420782321,1776528638962,-150.0,0.0001096,2]
[420782322,1776528638974,-150.0,0.0001126,2]
[420782323,1776528638984,-500.0,0.0001138,2]
[420782324,1776528638994,-1271.16516485,0.0001138,2]
[420782325,1776528639003,-500.0,0.0001138,2]
[420782326,1776528639013,-1271.16516485,0.0001138,2]
[420782327,1776528639023,-1271.16516485,0.0001138,2]
[420782328,1776528639031,-200.57296091,0.0001138,2]
[420782329,1776528639040,-1271.16516485,0.0001138,2]
[420782330,1776528639050,-1271.16516485,0.0001138,2]
[420782331,1776528639059,-1271.16516485,0.0001138,2]
[420782332,1776528639068,-1271.16516485,0.0001138,2]
[420782333,1776528639077,-1271.16516485,0.0001138,2]
[420782334,1776528639087,-1271.16516485,0.0001138,2]
[420782335,1776528639096,-1271.16516485,0.0001138,2]
[420782336,1776528639105,-1271.16516485,0.0001138,2]
[420782337,1776528639115,-1271.16516485,0.0001138,2]
[420782338,1776528639124,-1271.16516485,0.0001138,2]
[420782339,1776528639133,-1271.16516485,0.0001138,2]
[420782340,1776528639142,-1271.16516485,0.0001138,2]
[420782341,1776528639151,-1271.16516485,0.0001138,2]
[420782342,1776528639161,-1271.16516485,0.0001138,2]
[420782343,1776528639170,-1271.16516485,0.0001138,2]
[420782344,1776528639179,-1271.16516485,0.0001138,2]
[420782345,1776528639188,-1271.16516485,0.0001138,2]
[420782346,1776528639198,-1271.16516485,0.0001138,2]
[420782347,1776528639207,-1271.16516485,0.0001138,2]
[420782348,1776528639216,-1271.16516485,0.0001138,2]
[420782349,1776528639225,-1372.85837801,0.0001138,2]
[420782350,1776528639235,-1372.85837801,0.0001138,2]
[420782351,1776528639244,-1372.85837801,0.0001138,2]
[420782352,1776528639253,-1372.85837801,0.0001138,2]
[420782353,1776528639262,-1372.85837801,0.0001138,2]
[420782354,1776528639272,-2106.36965689,0.00011381,2]
[420782355,1776528639283,-109406.09286264,0.00011381,2]
[420782356,1776528639292,-315.80434753,0.00011432,2]
[420782357,1776528639303,-500.0,0.00011473,2]
[420782358,1776528639314,-287.904,0.0001148,2]
[420782359,1776528639323,-151.0,0.000115,2]
[420782360,1776528639333,-151.0,0.000115,2]
[420782361,1776528639342,-151.0,0.000115,2]
[420782362,1776528639351,-151.0,0.000115,2]
[420782363,1776528639361,-151.0,0.000115,2]
[420782364,1776528639370,-151.0,0.000115,2]
[420782365,1776528639379,-151.0,0.000115,2]
[420782366,1776528639388,-151.0,0.000115,2]
[420782367,1776528639397,-151.0,0.000115,2]
[420782368,1776528639407,-151.0,0.000115,2]
[420782369,1776528639416,-151.0,0.000115,2]
[420782370,1776528639426,-277.0,0.00011507,3]
[420782371,1776528639435,-410.99,0.00011532,2]
[420782372,1776528639444,-220.16,0.00011532,2]
[420782373,1776528639458,-150.0,0.0001156,2]
[420782374,1776528639467,-151.0,0.000116,2]
[420782375,1776528639476,-500.0,0.00011654,2]
[420782376,1776528639486,-151.0,0.000117,2]
[420782377,1776528639495,-151.0,0.000118,2]
[420782378,1776528639504,-600.0,0.00011813,2]
[420782379,1776528639513,-150.0,0.0001186,2]
[420782380,1776528639522,-151.0,0.000119,2]
[420782381,1776528639531,-151.0,0.00012,2]
[420782382,1776528639541,-151.0,0.000121,2]
[420782383,1776528639550,-150.0,0.0001216,2]
[420782384,1776528639559,-151.0,0.000122,2]
[420782385,1776528639569,-151.0,0.000124,2]
[420782386,1776528639579,-151.0,0.000124,2]
[420782387,1776528639589,-150.0,0.0001246,2]
[420782388,1776528639600,-151.0,0.000126,2]
[420782389,1776528639609,-151.0,0.000126,2]
[420782390,1776528639619,-166.0,0.00012603,3]
[420782391,1776528639629,-150.0,0.0001276,2]
[420782392,1776528639640,-151.0,0.000128,2]
[420782393,1776528639650,-151.0,0.000129,2]
[420782394,1776528639659,-537.6845,0.00012955,2]
[420782395,1776528639670,-537.6845,0.00012955,2]
[420782396,1776528639682,-2150.738,0.00012955,2]
[420782397,1776528639694,-184.0,0.00012963,2]
[420782398,1776528639706,-441.0,0.00012963,2]
[420782399,1776528639717,-310.39604467,0.00012971,2]
[420782400,1776528639726,-618.90002092,0.00012971,2]
[420782401,1776528639736,-720.0,0.00012994,2]
[420782402,1776528639745,-999.999999,0.00013,2]
[420782403,1776528639755,-151.0,0.00013,2]
[420782404,1776528639765,-4103.0,0.00013001,2]
[420782405,1776528639776,-557.5788265,0.0001301,2]
[420782406,1776528639787,-4103.0,0.00013031,2]
[420782407,1776528639798,-150.0,0.0001306,2]
[420782408,1776528639807,-578.20924308,0.00013065,2]
[420782409,1776528639817,-151.0,0.000131,2]
[420782410,1776528639826,-599.60298507,0.0001312,2]
[420782411,1776528639835,-4103.0,0.00013142,2]
[420782412,1776528639845,-621.78829552,0.00013175,2]
[420782413,1776528639856,-282.872961,0.00013214,2]
[420782414,1776528639865,-4103.0,0.00013219,2]
[420782415,1776528639874,-4103.0,0.00013219,2]
[420782416,1776528639883,-644.79446246,0.0001323,2]
[420782417,1776528639892,-4103.0,0.00013265,2]
[420782418,1776528639902,-744.93357691,0.00013285,2]
[420782419,1776528639912,-151.0,0.000133,2]
[420782420,1776528639922,-151.0,0.000133,2]
[420782421,1776528639931,-4103.0,0.00013318,2]
[420782422,1776528639940,-150.0,0.0001336,2]
[420782423,1776528639950,-160.0,0.00013425,2]
[420782424,1776528639959,-507.738917,0.00013425,2]
[420782425,1776528639969,-855.477835,0.00013425,2]
[420782426,1776528639978,-357.60198176,0.00013432,2]
[420782427,1776528639987,-4103.0,0.00013439,2]
[420782428,1776528639996,-300.95747067,0.000135,2]
[420782429,1776528640005,-151.0,0.000135,2]
[420782430,1776528640014,-151.0,0.000135,2]
[420782431,1776528640023,-446.05663765,0.00013503,2]
[420782432,1776528640033,-2230.315306,0.00013503,2]
[420782433,1776528640042,-4103.0,0.00013512,2]
[420782434,1776528640051,-151.0,0.00013512,2]
[420782435,1776528640061,-151.0,0.00013512,2]
[420782436,1776528640070,-288.105644,0.00013512,2]
[420782437,1776528640079,-455.6840661,0.00013572,2]
[420782438,1776528640088,-151.0,0.00013573,2]
[420782439,1776528640098,-11230.09632126,0.00013599,2]
[420782440,1776528640107,-4103.0,0.00013635,2]
[420782441,1776528640116,-150.0,0.0001366,2]
[420782442,1776528640125,-1019.081112,0.00013665,2]
[420782443,1776528640134,-500.0,0.00013673,2]
[420782444,1776528640143,-500.0,0.00013673,2]
[420782445,1776528640152,-500.0,0.00013673,2]
[420782446,1776528640162,-500.0,0.00013673,2]
[420782447,1776528640171,-500.0,0.00013673,2]
[420782448,1776528640180,-500.0,0.00013673,2]
[420782449,1776528640189,-500.0,0.00013673,2]
[420782450,1776528640199,-500.0,0.00013673,2]
[420782451,1776528640208,-500.0,0.00013673,2]
[420782452,1776528640217,-166.6953149,0.00013683,2]
[420782453,1776528640227,-115850.87904601,0.0001369,7]
[420782454,1776528640236,-408283.37486881,0.0001369,7]
[420782455,1776528640245,-175.46089197,0.0001369,2]
[420782456,1776528640254,-151.0,0.0001369,2]
[420782457,1776528640264,-151.0,0.0001369,2]
[420782459,1776528640273,-151.0,0.0001369,2]
[420782461,1776528640282,-151.0,0.0001369,2]
[420782462,1776528640290,-1846.52451583,0.0001369,3]
[420782463,1776528640299,-155.0,0.00013697,2]
[420782465,1776528640308,-515.08,0.00013698,2]
[420782467,1776528640318,-515.08,0.00013698,2]
[420782469,1776528640327,-515.08,0.00013698,2]
[420782470,1776528640336,-515.08,0.00013698,2]
[420782471,1776528640346,-515.08,0.00013698,2]
[420782472,1776528640355,-515.08,0.00013698,2]
[420782473,1776528640365,-515.08,0.00013698,2]
[420782474,1776528640374,-515.08,0.00013698,2]
[420782476,1776528640383,-515.08,0.00013698,2]
[420782478,1776528640392,-515.08,0.00013698,2]
[420782479,1776528640400,-515.08,0.00013698,2]
[420782480,1776528640409,-515.08,0.00013698,2]
[420782481,1776528640418,-515.08,0.00013698,2]
[420782482,1776528640427,-515.08,0.00013698,2]
[420782483,1776528640436,-515.08,0.00013698,2]
[420782484,1776528640445,-515.08,0.00013698,2]
[420782485,1776528640455,-515.08,0.00013698,2]
[420782486,1776528640464,-515.08,0.00013698,2]
[420782487,1776528640473,-515.08,0.00013698,2]
[420782488,1776528640483,-515.08,0.00013698,2]
[420782489,1776528640492,-515.08,0.00013698,2]
[420782490,1776528640501,-515.08,0.00013698,2]
[420782491,1776528640511,-515.08,0.00013698,2]
[420782492,1776528640519,-515.22813359,0.00013698,2]
[420782493,1776528640530,-510.59,0.00013698,2]
[420782494,1776528640539,-510.59,0.00013698,2]
[420782495,1776528640548,-510.59,0.00013698,2]
[420782496,1776528640557,-510.59,0.00013698,2]
[420782497,1776528640566,-510.59,0.00013698,2]
[420782498,1776528640575,-510.59,0.00013698,2]
[420782499,1776528640584,-510.59,0.00013698,2]
[420782500,1776528640593,-510.59,0.00013698,2]
[420782501,1776528640602,-510.59,0.00013698,2]
[420782502,1776528640611,-510.59,0.00013698,2]
[420782503,1776528640620,-510.59,0.00013698,2]
[420782504,1776528640630,-510.59,0.00013698,2]
[420782505,1776528640639,-510.59,0.00013698,2]
[420782506,1776528640648,-510.59,0.00013698,2]
[420782507,1776528640658,-510.59,0.00013698,2]
[420782508,1776528640667,-510.59,0.00013698,2]
[420782509,1776528640676,-510.59,0.00013698,2]
[420782510,1776528640685,-510.59,0.00013698,2]
[420782511,1776528640694,-510.59,0.00013698,2]
[420782512,1776528640704,-510.59,0.00013698,2]
[420782513,1776528640713,-510.59,0.00013698,2]
[420782514,1776528640723,-510.59,0.00013698,2]
[420782515,1776528640732,-510.59,0.00013698,2]
[420782516,1776528640742,-510.67283146,0.00013698,2]
[420782517,1776528640751,-500.0,0.00013698,2]
[420782518,1776528640760,-590.31042475,0.00013698,2]
[420782519,1776528640769,-500.0,0.00013698,2]
[420782520,1776528640778,-500.0,0.00013698,2]
[420782521,1776528640787,-500.0,0.00013698,2]
[420782522,1776528640797,-500.0,0.00013698,2]
[420782523,1776528640807,-500.0,0.00013698,2]
[420782524,1776528640816,-500.0,0.00013698,2]
[420782525,1776528640825,-500.0,0.00013698,2]
[420782526,1776528640834,-500.0,0.00013698,2]
[420782527,1776528640844,-270.14816945,0.00013698,2]
[420782528,1776528640853,-500.0,0.00013698,2]
[420782530,1776528640862,-500.0,0.00013698,2]
[420782531,1776528640871,-500.0,0.00013698,2]
[420782532,1776528640880,-373.3223523,0.00013698,2]
[420782533,1776528640889,-500.0,0.00013698,2]
[420782534,1776528640898,-217.48729729,0.00013698,2]
[420782535,1776528640907,-151.0,0.00013698,2]
[420782536,1776528640916,-151.0,0.00013698,2]
[420782537,1776528640926,-151.0,0.00013698,2]
[420782538,1776528640935,-151.0,0.00013698,2]
[420782539,1776528640944,-500.0,0.00013698,2]
[420782540,1776528640953,-500.0,0.00013698,2]
[420782541,1776528640962,-500.0,0.00013698,2]
[420782542,1776528640971,-500.0,0.00013698,2]
[420782543,1776528640981,-500.0,0.00013698,2]
[420782544,1776528640991,-500.0,0.00013698,2]
[420782545,1776528641000,-500.0,0.00013698,2]
[420782546,1776528641009,-500.0,0.00013698,2]
[420782547,1776528641018,-500.0,0.00013698,2]
[420782548,1776528641027,-500.0,0.00013698,2]
[420782549,1776528641037,-500.0,0.00013698,2]
[420782550,1776528641046,-500.0,0.00013698,2]
[420782551,1776528641056,-500.0,0.00013698,2]
[420782552,1776528641065,-500.0,0.00013698,2]
[420782553,1776528641074,-500.0,0.00013698,2]
[420782554,1776528641083,-500.0,0.00013698,2]
[420782555,1776528641092,-500.0,0.00013698,2]
[420782556,1776528641102,-500.0,0.00013698,2]
[420782557,1776528641111,-636.86607724,0.00013698,2]
[420782558,1776528641120,-581.57,0.00013698,2]
[420782559,1776528641130,-581.57,0.00013698,2]
[420782560,1776528641140,-581.57,0.00013698,2]
[420782561,1776528641149,-581.57,0.00013698,2]
[420782562,1776528641159,-581.57,0.00013698,2]
[420782563,1776528641168,-581.57,0.00013698,2]
[420782564,1776528641178,-581.57,0.00013698,2]
[420782565,1776528641187,-581.57,0.00013698,2]
[420782566,1776528641196,-581.57,0.00013698,2]
[420782567,1776528641206,-581.57,0.00013698,2]
[420782568,1776528641215,-581.57,0.00013698,2]
[420782569,1776528641224,-581.57,0.00013698,2]
[420782570,1776528641234,-581.57,0.00013698,2]
[420782571,1776528641243,-581.57,0.00013698,2]
[420782572,1776528641252,-581.57,0.00013698,2]
[420782573,1776528641262,-581.57,0.00013698,2]
[420782574,1776528641271,-581.57,0.00013698,2]
[420782575,1776528641280,-581.57,0.00013698,2]
[420782576,1776528641290,-581.57,0.00013698,2]
[420782577,1776528641299,-581.57,0.00013698,2]
[420782578,1776528641308,-581.57,0.00013698,2]
[420782579,1776528641319,-581.57,0.00013698,2]
[420782580,1776528641329,-581.57,0.00013698,2]
[420782581,1776528641338,-581.5747987,0.00013698,2]
[420782582,1776528641347,-575.03885469,0.00013698,2]
[420782583,1776528641356,-500.0,0.00013698,2]
[420782584,1776528641365,-500.0,0.00013698,2]
[420782585,1776528641375,-500.0,0.00013698,2]
[420782586,1776528641384,-500.0,0.00013698,2]
[420782587,1776528641394,-500.0,0.00013698,2]
[420782588,1776528641403,-500.0,0.00013698,2]
[420782589,1776528641413,-500.0,0.00013698,2]
[420782590,1776528641422,-500.0,0.00013698,2]
[420782591,1776528641431,-500.0,0.00013698,2]
[420782592,1776528641440,-500.0,0.00013698,2]
[420782593,1776528641450,-500.0,0.00013698,2]
[420782594,1776528641459,-500.0,0.00013698,2]
[420782595,1776528641468,-500.0,0.00013698,2]
[420782596,1776528641478,-500.0,0.00013698,2]
[420782597,1776528641488,-566.3850321,0.00013698,2]
[420782598,1776528641497,-529.20613134,0.00013698,2]
[420782599,1776528641506,-500.0,0.00013698,2]
[420782600,1776528641516,-500.0,0.00013698,2]
[420782601,1776528641525,-500.0,0.00013698,2]
[420782602,1776528641534,-500.0,0.00013698,2]
[420782603,1776528641544,-500.0,0.00013698,2]
[420782604,1776528641553,-500.0,0.00013698,2]
[420782605,1776528641563,-500.0,0.00013698,2]
[420782606,1776528641572,-2552.02,0.00013698,2]
[420782607,1776528641582,-500.0,0.00013698,2]
[420782608,1776528641592,-2552.02,0.00013698,2]
[420782609,1776528641602,-263.54,0.00013698,2]
[420782610,1776528641612,-2552.02,0.00013698,2]
[420782611,1776528641622,-2552.02,0.00013698,2]
[420782612,1776528641632,-2552.02,0.00013698,2]
[420782613,1776528641642,-2552.02,0.00013698,2]
[420782614,1776528641652,-2552.02,0.00013698,2]
[420782615,1776528641662,-2552.02,0.00013698,2]
[420782616,1776528641672,-2552.02,0.00013698,2]
[420782617,1776528641682,-2552.02,0.00013698,2]
[420782618,1776528641691,-2552.02,0.00013698,2]
[420782619,1776528641700,-2552.02,0.00013698,2]
[420782620,1776528641709,-2552.02,0.00013698,2]
[420782621,1776528641718,-2552.02,0.00013698,2]
[420782622,1776528641728,-2552.02,0.00013698,2]
[420782623,1776528641737,-2552.02,0.00013698,2]
[420782624,1776528641746,-2552.02,0.00013698,2]
[420782625,1776528641755,-2552.02,0.00013698,2]
[420782626,1776528641766,-2552.02,0.00013698,2]
[420782627,1776528641777,-2552.02,0.00013698,2]
[420782628,1776528641787,-2552.02,0.00013698,2]
[420782629,1776528641797,-2552.02,0.00013698,2]
[420782630,1776528641806,-2552.02,0.00013698,2]
[420782631,1776528641816,-2552.02932956,0.00013698,2]
[420782632,1776528641827,-1927.17,0.00013698,2]
[420782633,1776528641836,-1927.17,0.00013698,2]
[420782634,1776528641846,-1927.17,0.00013698,2]
[420782635,1776528641855,-1927.17,0.00013698,2]
[420782636,1776528641864,-1927.17,0.00013698,2]
[420782637,1776528641874,-1927.17,0.00013698,2]
[420782638,1776528641883,-1927.17,0.00013698,2]
[420782639,1776528641892,-1927.17,0.00013698,2]
[420782640,1776528641901,-1927.17,0.00013698,2]
[420782641,1776528641911,-1927.17,0.00013698,2]